Cogmind - Beta 16 @@@ ROGUE MODE // 2025.10.29 @ 22:15:59 Player: Naughtyusername Result: Destroyed by Enhanced Grunt with Neutron Cannon Performance ------------- Evolutions (3) 1500 Regions Visited (9) 1800 Robots Destroyed (177) 885 Value Destroyed (5640) 5640 Prototype IDs (45) 900 Alien Tech Used (0) 0 Bonus (1038) 1038 TOTAL SCORE: 11763 Bonus ------- High Alert Combat Kills 801 Follower Combat Kills 123 Met Data Miner 300 Friendly Fire -186 Cogmind --------- Core Integrity 0/700 Matter 200/300 Energy 11/100 System Corruption 15% Temperature Warm (165) Movement Walking (190) Ox1 Location -7/Data Miner Parts ------- > --- POWER (1+2) ------ (None) > --- PROPULSION (5) --- Enhanced Flexi-carbon Leg Enhanced Armored Leg Advanced Myomer Leg > --- UTILITY (5) ------ High-capacity Storage Unit Improved Signal Interpreter Experimental Terrain Scan Processor Thermal Defense Suite Power Bank > --- WEAPON (2) ------- Cooled Phase Cannon Cooled Phase Cannon > --- INVENTORY (20) --- Flightbrick High-capacity Battery (0) Improved Sensor Array Improved Medium Armor Plating Cooled Phase Cannon Cooled Phase Cannon Cooled Phase Cannon Heavy Missile Launcher Rocket Array Peak State ------------ > --- POWER ------------ Enhanced Nuclear Core Antimatter Reactor > --- PROPULSION ------- Enhanced Flexi-carbon Leg Enhanced Armored Leg Advanced Myomer Leg > --- UTILITY ---------- High-capacity Storage Unit Improved Signal Interpreter Experimental Terrain Scan Processor Thermal Defense Suite Power Bank > --- WEAPON ----------- Cooled Phase Cannon Cooled Phase Cannon > --- INVENTORY -------- Flightbrick High-capacity Battery Improved Sensor Array Improved Medium Armor Plating Cooled Phase Cannon Cooled Phase Cannon Cooled Phase Cannon Heavy Missile Launcher Rocket Array [Rating: 84] Favorites ----------- Power Enhanced Nuclear Core Engine Ion Engine Power Core Enhanced Nuclear Core Reactor Antimatter Reactor Propulsion Light Treads Treads Light Treads Leg Enhanced Armored Leg Wheel Armored Huge Wheel Hover Unit Improved Airjet Flight Unit Improved VTOL Module Utility High-capacity Storage Unit Device Improved Sensor Array Storage High-capacity Storage Unit Processor Advanced Targeting Computer Protection Layered Light Armor Plating Weapon Enhanced Autogun Energy Gun EM Shotgun Energy Cannon Cooled Phase Cannon Ballistic Gun Enhanced Autogun Ballistic Cannon Battle Cannon Launcher Rocket Array Impact Weapon Powered Hammer Slashing Weapon Makeshift Axe Build | -11 -10 -10 -10 -8 -8 -7 -7 -7 -7 ------- Run | Yrd Mat Min Sub Mat Sto Fac Low Low Dat Slots Evolved 6 | . . . . 4 . 2 . . . Power . | . . . . . . . . . . Propulsion 3 | . . . . 2 . 1 . . . Utility 3 | . . . . 2 . 1 . . . Weapon . | . . . . . . . . . . Parts Attached 128 | 7 6 2 16 34 16 31 2 5 9 Power 13 | 1 1 . 2 4 1 2 . . 2 Engine 7 | 1 1 . 1 3 . 1 . . . Core 5 | . . . 1 1 1 1 . . 1 Reactor 1 | . . . . . . . . . 1 Propulsion 44 | 2 1 . 4 14 9 9 . 3 2 Treads 33 | 2 1 . 4 11 7 5 . 3 . Leg 3 | . . . . . . 1 . . 2 Wheel 2 | . . . . . . 2 . . . Hover 4 | . . . . 1 2 1 . . . Flight 2 | . . . . 2 . . . . . Utility 32 | 2 2 . 1 8 3 11 2 2 1 Device 8 | 1 . . . 1 1 3 . 1 1 Storage 6 | 1 1 . . 2 . 2 . . . Processor 8 | . . . . 2 1 4 1 . . Hackware . | . . . . . . . . . . Protection 10 | . 1 . 1 3 1 2 1 1 . Artifact . | . . . . . . . . . . Weapon 39 | 2 2 2 9 8 3 9 . . 4 Energy Gun 7 | . 2 2 2 1 . . . . . Energy Cannon 11 | . . . 2 . . 5 . . 4 Ballistic Gun 13 | 2 . . 2 6 2 1 . . . Ballistic Cannon 1 | . . . 1 . . . . . . Launcher 5 | . . . 1 1 1 2 . . . Special Weapon . | . . . . . . . . . . Impact Weapon 1 | . . . . . . 1 . . . Slashing Weapon 1 | . . . 1 . . . . . . Piercing Weapon . | . . . . . . . . . . Special Melee Weapon . | . . . . . . . . . . Unidentified Prototypes 22 | . . . . 9 2 9 . . 2 Corrupted Parts 2 | . . . . . 1 . . . 1 System Corruption 9 | . . . . . 2 . . . 7 Parts Lost 36 | . 1 1 13 1 3 6 . 1 10 Power 8 | . 1 . 3 . 1 . . . 3 Propulsion 13 | . . . 4 1 . 5 . . 3 Utility 5 | . . . 1 . 1 1 . 1 1 Weapon 10 | . . 1 5 . 1 . . . 3 Highest Loss Streak 8 | . 1 1 4 1 3 1 . 1 8 To Critical Strikes . | . . . . . . . . . . Average Backups 13 | 1 8 14 12 13 16 16 16 16 14 Power 1 | . . . . 1 1 1 1 1 . Propulsion 3 | . 2 7 4 2 3 4 3 3 2 Utility 4 | . 1 3 3 5 7 6 5 4 3 Weapon 4 | . 2 3 3 4 3 4 7 7 7 Tool/Special . | . . . . . . . . . . Unused Backups 20 | . 1 . 4 7 2 3 . . 3 Power 1 | . . . . 1 . . . . . Propulsion 8 | . . . 3 . 2 2 . . 1 Utility 4 | . . . . 4 . . . . . Weapon 6 | . 1 . 1 2 . . . . 2 Tool/Special 1 | . . . . . . 1 . . . Average Slot Usage (%) 95 | . 96 100 99 97 99 91 91 91 79 Engine 6 | . 13 14 10 2 . . 7 7 5 Core 3 | . . . 3 5 8 6 . . 1 Treads 25 | . 28 28 28 35 36 21 15 15 10 Leg 1 | . . . . . . . 7 7 9 Wheel 2 | . . . . . . 6 7 7 4 Device 4 | . 2 . 3 6 6 . 7 6 7 Storage 11 | . 19 14 14 12 9 7 7 7 6 Processor 9 | . . . . 4 8 19 22 19 14 Protection 8 | . 3 14 10 12 12 9 . 3 5 Energy Gun 5 | . 9 28 12 2 . . . . . Energy Cannon 4 | . . . 3 . . 2 15 15 9 Ballistic Gun 8 | . 18 . 4 15 17 11 . . . Ballistic Cannon 1 | . . . 5 . . . . . . Peak Build Rating 84 | 7 12 12 18 40 45 70 69 72 84 Average Rating 36 | 5 8 11 14 33 39 51 68 68 67 On Entrance 33 | . 7 11 12 16 40 40 70 69 72 Avg Prop Armor Cover (%) 18 | . . . . . 1 16 21 19 19 Naked Turns . | . . . . . . . . . . Heaviest Build 84 | 14 36 34 42 63 63 77 80 84 81 Greatest Support 102 | 40 43 43 46 83 82 102 28 28 58 Greatest Overweight (x) 2 | . . . . . . 2 2 2 2 Average Overweight (x) . | . . . . . . 1 2 2 1 Largest Inventory Capacity 20 | 8 15 15 15 20 20 20 20 20 20 Average Capacity 17 | 7 12 15 15 16 20 20 20 20 20 Most Carried 20 | 2 15 15 15 20 20 20 20 20 20 Average Carried 16 | 1 8 14 14 16 19 19 19 19 18 Final Capacity 20 | 8 15 15 15 20 20 20 20 20 20 Final Carried 20 | 2 14 15 15 20 20 20 19 20 12 Class Distribution -------------------- 92% | Mutant 7% | Scavenger-Mutant Dominant Class ---------------- Mutant | -10/Materials Mutant | -10/Mines Mutant | -10/Subcaves Mutant | -8/Materials Mutant | -8/Storage Mutant | -7/Factory Mutant | -7/Lower Caves Mutant | -7/Lower Caves Mutant | -7/Data Miner Resources | -11 -10 -10 -10 -8 -8 -7 -7 -7 -7 ----------- Run | Yrd Mat Min Sub Mat Sto Fac Low Low Dat Matter Collected 5166 | 330 253 28 420 1012 1166 1442 34 324 157 Remotely . | . . . . . . . . . . Salvage Created 6352 | 109 595 181 537 934 1218 2016 . 468 294 Parts 334 | 9 40 9 24 39 67 126 . 9 11 Haulers Intercepted 16 | . 2 . . 5 5 4 . . . Recyclers Shooed 1 | 1 . . . . . . . . . Parts Field Recycled . | . . . . . . . . . . Retrieved Matter . | . . . . . . . . . . Parts Self-Destructed 20 | . . . 17 . . . . 3 . Prevented . | . . . . . . . . . . Parts Restored . | . . . . . . . . . . Kills | -11 -10 -10 -10 -8 -8 -7 -7 -7 -7 ------- Run | Yrd Mat Min Sub Mat Sto Fac Low Low Dat Combat Hostiles Destroyed 114 | . 15 4 14 15 15 42 . 6 3 Guns 70 | . 14 1 9 15 14 17 . . . Cannons 9 | . . . 4 . . . . 4 1 AOE 32 | . 1 3 1 . 1 25 . 1 . Classes Destroyed 20 | 2 5 . 1 5 1 4 . 2 . Worker 20 | . 1 . . 1 3 15 . . . Builder 11 | . . . . . . 11 . . . Tunneler 3 | 2 . . . . . 1 . . . Hauler 16 | . 2 . . 5 5 4 . . . Recycler 5 | 1 . . . . 1 3 . . . Minesweeper 1 | . . . . . . . . 1 . Mechanic 3 | . . . . 1 . 2 . . . Operator 1 | . . . . . 1 . . . . Watcher 3 | . 2 . . . 1 . . . . Swarmer 19 | . 9 . . 3 . 7 . . . Grunt 42 | . 6 4 2 8 7 15 . . . Brawler 1 | . . . . 1 . . . . . Duelist 1 | . . . . 1 . . . . . Protector 1 | . . . . . . 1 . . . Sentry 11 | . . . . 1 6 4 . . . Specialist 3 | . . . . . . 3 . . . Hunter 10 | . . . . 1 1 8 . . . Programmer 4 | . . . . . . 4 . . . Enhanced Grunt 3 | . . . . . . . . . 3 Subdweller 12 | . . . 12 . . . . . . Savage 4 | . . . . . . . . 4 . Butcher 1 | . . . . . . . . 1 . Mutant 1 | . . . . . . . . 1 . Best Kill Streak 17 | 2 4 2 3 3 5 17 . 3 2 Combat Bots Only 9 | . 3 2 3 3 4 9 . 3 2 Max Kills in Single Turn 11 | 1 2 1 1 1 3 11 . 1 1 Gunslinging . | . . . . . . . . . . Exploded 6 | . 1 1 1 . 1 6 . 1 . Melee . | . . . . . . . . . . Uniques/NPCs Destroyed 1 | . . . . . 1 . . . . 01-MTF (-8/Storage) Combat | -11 -10 -10 -10 -8 -8 -7 -7 -7 -7 -------- Run | Yrd Mat Min Sub Mat Sto Fac Low Low Dat Hostile Shots Fired 681 | . 77 12 71 81 109 212 3 38 78 Missed 192 | . 21 5 19 26 29 54 1 18 19 Hits 489 | . 56 7 52 55 80 158 2 20 59 Melee 6 | . . . . 4 . . . 2 . Projectile 483 | . 56 7 52 51 80 158 2 18 59 AOE 2 | . . . 2 . . . . . . Critical Strikes 18 | . 1 . 3 3 9 1 . 1 . Part Disruptions 9 | . . . . . 7 1 . . 1 Damage Taken 9141 | . 589 93 1386 889 1455 2029 . 329 2371 Core 1091 | . 93 . 99 61 113 284 . 6 435 Absorbed by Shields . | . . . . . . . . . . Redirected to Shielding 45 | . . . 45 . . . . . . Ignored by Resistances 264 | . . . . . . . . . 264 Regen/Repaired (Parts) 178 | . . . . . . 178 . . . Core Remaining (%) 63 | 100 . . 23 . 68 . . . . Volleys Fired 570 | 15 56 6 85 70 103 104 49 46 36 Largest 2 | 2 2 2 2 2 2 2 1 2 2 Hottest 240 | 40 90 90 140 108 58 80 40 80 240 Shots Fired 1005 | 30 112 11 153 139 203 194 48 70 45 Gun 754 | 30 112 11 96 137 200 168 . . . Cannon 235 | . . . 55 2 . 15 48 70 45 Launcher 16 | . . . 2 . 3 11 . . . Special . | . . . . . . . . . . Kinetic 656 | 30 88 . 65 105 200 168 . . . Thermal 257 | . . . 58 34 . 15 48 70 32 Explosive 14 | . . . . . 3 11 . . . Electromagnetic 78 | . 24 11 30 . . . . . 13 Robot Hit Streak 22 | 6 10 7 13 18 22 18 . 22 7 Robot Miss Streak 4 | 2 4 2 4 3 4 3 . 3 2 Penetration Max . | . . . . . . . . . . Secondary Targets 6 | . 1 1 . 3 . 1 . . . Max Gunslinging Chain 1 | . 1 1 . 1 . 1 . . . Shots Hit Robots 572 | 21 64 10 66 91 131 134 . 31 24 Core Hits 328 | 6 31 9 29 35 48 148 . 11 11 Critical Kills 3 | . 1 . . . 1 . . 1 . Critical Parts Destroyed 6 | . . . 1 2 1 2 . . . Critical Strikes 11 | . 1 . 1 4 2 2 . 1 . Burn 2 | . . . . 2 . . . . . Meltdown 1 | . . . . . . . . 1 . Destroy 7 | . 1 . 1 2 2 1 . . . Smash 1 | . . . . . . 1 . . . Melee Attacks 18 | . . . . 1 4 13 . . . Impact 13 | . . . . . . 13 . . . Slashing 5 | . . . . 1 4 . . . . Piercing . | . . . . . . . . . . Sneak Attacks 4 | . . . . . 1 3 . . . Combat Hostiles . | . . . . . . . . . . Follow-up Attacks . | . . . . . . . . . . Damage Inflicted 16865 | 199 892 307 1423 1641 2535 8099 . 1117 652 Guns 7941 | 199 746 150 769 1555 2302 2220 . . . Cannons 2643 | . . . 532 55 . 287 . 1117 652 Explosions 5784 | . 122 117 122 . 133 5290 . . . Melee 373 | . . . . . 76 297 . . . Ramming 124 | . 24 40 . 31 24 5 . . . Kinetic 6810 | 199 474 . 499 1116 2302 2220 . . . Thermal 4136 | . 122 117 639 494 . 1159 . 1117 488 Explosive 4551 | . . . . . 133 4418 . . . Electromagnetic 871 | . 272 150 285 . . . . . 164 Impact 297 | . . . . . . 297 . . . Slashing 76 | . . . . . 76 . . . . Piercing . | . . . . . . . . . . Highest Corruption 15 | . 2 2 2 2 10 5 5 8 15 Average Corruption 3 | . 2 2 2 2 5 3 5 5 8 Corruption Purged . | . . . . . . . . . . Corruption Blocked . | . . . . . . . . . . Effects 233 | . 13 11 37 25 31 33 26 48 9 Message Errors 56 | . 1 2 9 5 9 6 4 19 1 Matter Fused 56 | . 3 2 5 7 9 11 5 10 4 Heat Flow Errors 28 | . . 2 4 1 2 8 4 5 2 Energy Discharges 27 | . 4 2 3 2 4 3 7 2 . Parts Fused 2 | . . . . . 1 . 1 . . Data Loss (minor) 25 | . 3 . 5 5 4 1 2 4 1 Data Loss (major) 13 | . . 3 2 4 . . 2 2 . Misfires 10 | . . . 4 . 1 1 . 3 1 Alerts 8 | . 2 . 2 1 . 1 . 2 . Weapon Failures 8 | . . . 3 . 1 2 1 1 . Overload Shots 5 | . . . . . . . . . 5 Effects 2 | . . . . . . . . . 2 Energy Bleed 2 | . . . . . . . . . 2 Overflow Damage 584 | . . . . . 18 511 . 34 21 Projectiles 68 | . . . . . . 13 . 34 21 Explosions 327 | . . . . . 18 309 . . . Melee 189 | . . . . . . 189 . . . Knockbacks 7 | . . . 6 . . 1 . . . Impact 1 | . . . . . . 1 . . . Kinetic 5 | . . . 5 . . . . . . Secondary 1 | . . . 1 . . . . . . Self-Inflicted Damage 131 | . 13 4 . . . 114 . . . Shots 8 | . 1 1 . . . 6 . . . Rammed 22 | . 6 6 . 8 2 . . . . Targets Rammed 26 | . 6 6 . 10 3 1 . . . Kicked . | . . . . . . . . . . Crushed 4 | . . . . 2 1 1 . . . Highest Temperature 548 | . 356 282 250 269 274 266 266 246 548 Average Temperature 94 | . 121 101 61 108 67 53 113 50 231 Received Heat Transfer 1813 | . 120 51 508 414 315 387 . 18 . Effects 15 | . . . 1 2 . . . . 12 Shutdowns 6 | . . . . . . . . . 6 Energy Bleed 4 | . . . 1 2 . . . . 1 Interference 1 | . . . . . . . . . 1 Matter Decay 2 | . . . . . . . . . 2 Short Circuit 1 | . . . . . . . . . 1 Damage (major) 1 | . . . . . . . . . 1 Siege Activations . | . . . . . . . . . . Martial Activations . | . . . . . . . . . . Shielding Activations . | . . . . . . . . . . Robots Disrupted . | . . . . . . . . . . Combat Hostiles . | . . . . . . . . . . Robots Corrupted 3 | . . . . . . 1 . . 2 Combat Hostiles 2 | . . . . . . . . . 2 Parts Fried 10 | . 1 . 1 . . 3 . . 5 Impact Corruptions 6 | . . . . . . 6 . . . Robots Melted 1 | . . . . . . . . 1 . Combat Hostiles 1 | . . . . . . . . 1 . Parts Melted 10 | . . . 4 . . 2 . 4 . Heat Transferred 4805 | . 150 100 771 1073 . 896 . 1147 668 Parts Sabotaged . | . . . . . . . . . . Parts Stolen . | . . . . . . . . . . Parts Stripped . | . . . . . . . . . . Power Chain Reactions 6 | . 2 3 1 . . . . . . Alert | -11 -10 -10 -10 -8 -8 -7 -7 -7 -7 ------- Run | Yrd Mat Min Sub Mat Sto Fac Low Low Dat Maximum Alert Level 4 | . . . . . 1 4 . . . Low Security (%) 68 | 100 100 100 . 100 24 26 . . . Level 1 13 | . . . . . 75 . . . . Level 2 11 | . . . . . . 44 . . . Level 3 1 | . . . . . . 7 . . . Level 4 5 | . . . . . . 21 . . . Level 5 . | . . . . . . . . . . High Security . | . . . . . . . . . . Max Security . | . . . . . . . . . . Peak Influence 1497 | 10 134 54 . 149 314 1497 . . . Initial 81 | . . 30 . . 51 81 . . . Average 228 | . 56 8 . 55 226 652 . . . Influence Increases 3911 | 15 473 121 71 584 641 1941 60 5 . Destroy 0b10 Robot/C 1840 | . 300 80 60 300 280 820 . . . Destroy 0b10 Robot/NC 320 | 15 25 . . 35 55 185 . 5 . Destroy Leader 448 | . 58 20 10 80 102 178 . . . Allied During Kill 1 | . . . 1 . . . . . . Successful Hack 139 | . 26 12 . 30 6 65 . . . Select Force Hacks 150 | . 30 . . 60 60 . . . . Disable Machine 705 | . 15 . . 75 75 540 . . . Destroy Structure 203 | . 4 9 . 4 33 153 . . . Partial Spotted 15 | . . . . . 15 . . . . Lose Combat Pursuer 90 | . 15 . . . 15 . 60 . . Influence Decreases 3911 | 15 395 199 71 462 583 651 990 545 . Entered New Map 865 | . . 48 . . 71 99 544 103 . Time Decay 2916 | 15 385 141 71 452 482 492 446 432 . Lost Part 130 | . 10 10 . 10 30 60 . 10 . Squads Dispatched 31 | . 2 . . 8 5 16 . . . Investigation 9 | . 1 . . 2 2 4 . . . Extermination 4 | . . . . . . 4 . . . Reinforcement 11 | . 1 . . 3 2 5 . . . Assault 1 | . . . . . . 1 . . . Garrison 6 | . . . . 3 1 2 . . . Intercept . | . . . . . . . . . . Searches Triggered . | . . . . . . . . . . Construction Impeded 1 | . . . . . . 1 . . . Haulers Reinforced 2 | . . . . . . 2 . . . Active Scanning Responses . | . . . . . . . . . . Cargo Convoy Interrupts 1 | . . . . . . 1 . . . Stealth | -11 -10 -10 -10 -8 -8 -7 -7 -7 -7 --------- Run | Yrd Mat Min Sub Mat Sto Fac Low Low Dat Distress Signals 12 | . 2 . . 3 5 2 . . . Communications Jammed . | . . . . . . . . . . Distress Signals . | . . . . . . . . . . Times Spotted 174 | . 26 4 21 16 35 54 3 11 4 Peak Tracking Total 11 | . 4 2 2 3 6 11 4 5 4 Tactical Retreats 5 | . 1 . . . 1 . 2 1 . Traps | -11 -10 -10 -10 -8 -8 -7 -7 -7 -7 ------- Run | Yrd Mat Min Sub Mat Sto Fac Low Low Dat Traps Triggered 12 | . 3 . 3 2 . 4 . . . Indirectly . | . . . . . . . . . . Trap Hack Attempts . | . . . . . . . . . . Triggered . | . . . . . . . . . . Disarmed . | . . . . . . . . . . Reprogrammed . | . . . . . . . . . . Reused 2 | . . . . . . . . 1 1 Traps Extracted . | . . . . . . . . . . Installed 2 | . . . . . . . . 1 1 Triggered . | . . . . . . . . . . Most Traps Carried 1 | . . . . . . . . 1 1 Machines | -11 -10 -10 -10 -8 -8 -7 -7 -7 -7 ---------- Run | Yrd Mat Min Sub Mat Sto Fac Low Low Dat Machines Disabled 49 | . 1 . 1 5 5 36 . 1 . Max in Single Turn 21 | . 1 . 1 1 1 21 . 1 . Garrison Access 2 | . . . . . . 2 . . . Machines Repaired . | . . . . . . . . . . Machines Dismantled . | . . . . . . . . . . Machines Sabotaged . | . . . . . . . . . . Overloaded Fab Kills . | . . . . . . . . . . Hacking | -11 -10 -10 -10 -8 -8 -7 -7 -7 -7 --------- Run | Yrd Mat Min Sub Mat Sto Fac Low Low Dat Machines Accessed 47 | . 9 1 2 13 7 11 . 1 3 Terminals 21 | . 7 1 . 8 4 1 . . . Fabricators 3 | . . . . . . 3 . . . Repair Stations 2 | . . . . . . 2 . . . Recycling Units 7 | . 2 . . 2 2 1 . . . Scanalyzers 3 | . . . . 2 . 1 . . . Garrison Access 5 | . . . . 1 1 3 . . . Total Hacks 154 | . 32 3 5 40 15 28 . 1 30 Successful 103 | . 16 2 5 26 7 16 . 1 30 Failed 48 | . 15 1 . 13 8 11 . . . Catastrophic 6 | . 1 . . . 1 4 . . . Database Lockouts 3 | . 1 . . 1 . 1 . . . Manual 67 | . 28 3 . 19 10 7 . . . Terminals 66 | . 28 3 . 22 11 2 . . . Fabricators 5 | . . . . . . 5 . . . Repair Stations 5 | . . . . . . 5 . . . Recycling Units 12 | . 4 . . 3 2 3 . . . Scanalyzers 21 | . . . . 13 . 8 . . . Garrison Access 9 | . . . . 2 2 5 . . . Terminal Hacks 48 | . 4 2 5 2 3 1 . 1 30 Record 11 | . . . 4 . . . . 1 6 Part Schematic 13 | . . . . . . . . . 13 Robot Schematic 8 | . . . . . . . . . 8 Robot Analysis 2 | . . 2 . . . . . . . Prototype ID Bank 6 | . 2 . . . 1 . . . 3 Branch Access Points 2 | . 1 . . . . 1 . . . Terminal Index 3 | . 1 . . 1 1 . . . . Alert Level 1 | . . . . . 1 . . . . Hauler Manifests 1 | . . . . 1 . . . . . Proto ID Catalog 1 | . . . 1 . . . . . . Fabricator Hacks 3 | . . . . . . 3 . . . Network Status 2 | . . . . . . 2 . . . Load Schematic 1 | . . . . . . 1 . . . Repair Station Hacks . | . . . . . . . . . . Recycling Unit Hacks 1 | . . . . 1 . . . . . Retrieve Components 1 | . . . . 1 . . . . . Scanalyzer 17 | . . . . 11 . 6 . . . Insert Component 5 | . . . . 3 . 2 . . . Analyze 6 | . . . . 4 . 2 . . . Retrieve Study 6 | . . . . 4 . 2 . . . Garrison Access Hacks 3 | . . . . . 1 2 . . . Unlock Access 1 | . . . . . 1 . . . . Seal Access 2 | . . . . . . 2 . . . Unauthorized Hacks 31 | . 12 . . 12 3 4 . . . Terminals 21 | . 11 . . 9 1 . . . . Track 1 | . . . . . 1 . . . . Botnet 7 | . 4 . . 3 . . . . . Operators 1 | . 1 . . . . . . . . Skim 12 | . 6 . . 6 . . . . . Fabricators 1 | . . . . . . 1 . . . Haulers 1 | . . . . . . 1 . . . Repair Stations 2 | . . . . . . 2 . . . Patch 2 | . . . . . . 2 . . . Recycling Units 6 | . 1 . . 2 2 1 . . . Recyclers 1 | . . . . . . 1 . . . Tunnel 5 | . 1 . . 2 2 . . . . Scanalyzers . | . . . . . . . . . . Garrison Access 1 | . . . . 1 . . . . . Reprogram 1 | . . . . 1 . . . . . Data Cores Recovered . | . . . . . . . . . . Used . | . . . . . . . . . . Hacking Detections 32 | . 8 1 . 10 5 8 . . . Full Trace Events 1 | . 1 . . . . . . . . Feedback Events . | . . . . . . . . . . Feedback Blocked . | . . . . . . . . . . Robot Schematics Acquired 8 | . . . . . . . . . 8 Robots Built . | . . . . . . . . . . Authchips . | . . . . . . . . . . Time . | . . . . . . . . . . Total Robot Build Rating . | . . . . . . . . . . Part Schematics Acquired 18 | . . . . 3 . 2 . . 13 Parts Built . | . . . . . . . . . . Authchips . | . . . . . . . . . . Time . | . . . . . . . . . . Total Part Build Rating . | . . . . . . . . . . Part Studies Acquired 6 | . . . . 4 . 2 . . . Parts Repaired . | . . . . . . . . . . Time . | . . . . . . . . . . Parts Recycled . | . . . . . . . . . . Recycled Matter . | . . . . . . . . . . Retrieved Matter . | . . . . . . . . . . Retrieved Components 10 | . . . . 10 . . . . . Parts Scanalyzed 5 | . . . . 3 . 2 . . . Part Schematics Acquired 5 | . . . . 3 . 2 . . . Parts Damaged 1 | . . . . 1 . . . . . Bothacking | -11 -10 -10 -10 -8 -8 -7 -7 -7 -7 ------------ Run | Yrd Mat Min Sub Mat Sto Fac Low Low Dat Used RIF Installer . | . . . . . . . . . . Robots Hacked . | . . . . . . . . . . Non-combat . | . . . . . . . . . . Combat . | . . . . . . . . . . Robot Hacks Applied . | . . . . . . . . . . Relay Couplers Released . | . . . . . . . . . . Fabnet Peak Effective % . | . . . . . . . . . . Robots Rewired . | . . . . . . . . . . Allies Hacked . | . . . . . . . . . . Hacks Repelled . | . . . . . . . . . . Allies | -11 -10 -10 -10 -8 -8 -7 -7 -7 -7 -------- Run | Yrd Mat Min Sub Mat Sto Fac Low Low Dat Total Allies 3 | . . 3 . . . . . . . Largest Group 3 | . . 3 3 . . . . . . Highest-Rated Group 40 | . . 40 40 . . . . . . Highest-Rated Ally 16 | . . 16 16 . . . . . . Total Orders . | . . . . . . . . . . Ally Attacks 27 | . . . 27 . . . . . . Total Damage 349 | . . . 349 . . . . . . Kills 4 | . . . 4 . . . . . . Allies Corrupted . | . . . . . . . . . . Allies Melted . | . . . . . . . . . . Intel | -11 -10 -10 -10 -8 -8 -7 -7 -7 -7 ------- Run | Yrd Mat Min Sub Mat Sto Fac Low Low Dat Active Infowar (turns) 6108 | 32 258 . 568 1104 . 1745 1108 1293 . Optics 971 | . . . . 971 . . . . . Sensors 2563 | . . . . . . 162 1108 1293 . Seismic 1071 | 32 258 . 568 133 . 80 . . . Machine Analysis 1511 | . . . . . . 1511 . . . Robot Analysis Total 2 | . . 2 . . . . . . . Derelict Logs Recovered 7 | . . . 2 . . . 3 2 . Drone Launches . | . . . . . . . . . . Drone Recoveries . | . . . . . . . . . . Exploration | -11 -10 -10 -10 -8 -8 -7 -7 -7 -7 ------------- Run | Yrd Mat Min Sub Mat Sto Fac Low Low Dat Turns Passed 12479 | 160 1282 798 2590 1849 1254 1780 1110 1419 237 Spaces Moved 7180 | 70 664 463 1416 974 608 989 837 1056 103 Core 5 | 5 . . . . . . . . . Treads 4416 | 65 664 463 1416 974 608 225 . . 1 Legs 3 | . . . . . . . . . 3 Wheels 2756 | . . . . . . 764 837 1056 99 Hover . | . . . . . . . . . . Flight . | . . . . . . . . . . Fastest Speed 50 | 50 160 160 160 156 155 100 120 120 120 Average Speed 144 | 152 160 160 160 157 155 132 120 120 122 Slowest Speed 200 | 160 160 160 160 160 156 157 120 120 200 Overloaded Moves . | . . . . . . . . . . Propulsion Burnouts . | . . . . . . . . . . Robots Hopped . | . . . . . . . . . . Potential Cave-ins 2 | . . . . . . . 2 . . Cave-ins Triggered . | . . . . . . . . . . Exploration Rate (%) 73 | 6 90 98 80 90 93 30 78 95 75 Regions Visited 9 Branch Regions 6 Pre-discovered Areas 11 | . 1 . 1 6 2 . . . 1 Known Exits Taken 6 | . 1 1 . 1 . 1 1 1 . Unknown Exits Taken 3 | 1 . . 1 . 1 . . . . Scrap Searched 11 | . . 1 5 . . . 1 4 . Spaces Dug 65 | . . . 1 1 21 11 19 12 . Terrain Destroyed 335 | . 3 9 44 1 32 164 47 32 3 Melee 9 | . . . . 1 . 8 . . . Projectile 95 | . . . 8 . . 5 47 32 3 AOE 231 | . 3 9 36 . 32 151 . . . Terrain Rammed . | . . . . . . . . . . Walls Destroyed . | . . . . . . . . . . Machines Disabled . | . . . . . . . . . . Actions | -11 -10 -10 -10 -8 -8 -7 -7 -7 -7 --------- Run | Yrd Mat Min Sub Mat Sto Fac Low Low Dat Total 8414 | 93 778 504 1586 1171 787 1300 893 1135 167 Wait 231 | . 25 26 37 13 18 86 4 13 9 Move 7171 | 69 663 462 1415 973 607 988 836 1055 103 Hop . | . . . . . . . . . . Pick Up 88 | 2 14 2 17 23 7 20 . 2 1 Fast Attach 27 | 7 4 . . 5 . 8 . 1 2 Attach 40 | . 1 1 12 6 3 7 1 1 8 Detach 7 | . 1 . . 2 . 3 1 . . Swap 141 | . 2 1 11 37 27 45 1 13 4 Drop 92 | . 6 . 9 31 15 25 . 3 3 Fire 570 | 15 56 6 85 70 103 104 49 46 36 Melee 18 | . . . . 1 4 13 . . . Ram . | . . . . . . . . . . Kick . | . . . . . . . . . . Crush 26 | . 6 6 . 10 3 1 . . . Escape Stasis . | . . . . . . . . . . Rewire 1 | . . . . . . . 1 . . Trap 2 | . . . . . . . . 1 1 Miscellaneous . | . . . . . . . . . . Route ------- -11/Scrapyard -10/Materials (discovered 5 exits: *Mat x3 / *Min / *Sub) -10/Mines (discovered 4 exits: *Mat x2 / Exi / *Sub) -10/Subcaves (discovered 2 exits: *Mat x2) -8/Materials (discovered 5 exits: *Fac x3 / *Sto x2) -8/Storage (discovered 3 exits: *Fac / [*Rec] / Gar) -7/Factory (discovered 2 exits: *Low x2) -7/Lower Caves -7/Lower Caves (discovered 2 exits: *Fac / *Dat) -7/Data Miner (discovered 1 exit: [*Pro]) History --------- Turn | Location | Event 6 | -11/Scrapyard | Discovered new exit (range 15) 161 | -11/Scrapyard | Entered Materials 293 | -10/Materials | Discovered new exit (range 13) 323 | -10/Materials | Build established: Mutant 532 | -10/Materials | Discovered new exit (range 9) 535 | -10/Materials | Identified exit to Mines 967 | -10/Materials | Identified exit to Subcaves 1031 | -10/Materials | Identified exit to Materials 1044 | -10/Materials | Central database locked down 1047 | -10/Materials | Learned location of 2 exits from Mines 1053 | -10/Materials | Learned 4 Subcaves zone layouts 1443 | -10/Materials | Entered Mines 1444 | -10/Mines | Identified exit to Exiles 1483 | -10/Mines | Discovered exit to Materials (range 4) 1721 | -10/Mines | Discovered exit to Subcaves (range 10) 1845 | -10/Mines | Received a Rocket Launcher from a helpful Derelict 1919 | -10/Mines | Assisted by bots powering up and referring to "LRC-V3" 2241 | -10/Mines | Entered Subcaves 2241 | -10/Subcaves | Accompanied by 3 allies 2242 | -10/Subcaves | Approached by a straggling Scientist 2397 | -10/Subcaves | Ambushed by Subdweller buried in earth 2428 | -10/Subcaves | Lost 3 allies 2566 | -10/Subcaves | Ambushed by Subdweller buried in earth 2567 | -10/Subcaves | Learned location of Zion (-6) 2567 | -10/Subcaves | Met a Zionite searching for "candidates" 2661 | -10/Subcaves | Discovered new exit (range 6) 2759 | -10/Subcaves | Disturbed a concealed Subdweller 2865 | -10/Subcaves | Visited Clippyterm 2870 | -10/Subcaves | Learned Factory fabricator intel 2911 | -10/Subcaves | Shifting Twisted Machinery released Sub. Beam Cannon 3066 | -10/Subcaves | Shifting Twisted Machinery released Mak. Light Armor Plating 3139 | -10/Subcaves | Learned 2 Materials zone layouts 3363 | -10/Subcaves | Core integrity fell below 50% 3373 | -10/Subcaves | A swath of the cavern ceiling suddenly collapsed 3417 | -10/Subcaves | A swath of the cavern ceiling suddenly collapsed 3963 | -10/Subcaves | A Subdweller sparked back to life 3963 | -10/Subcaves | A Subdweller sparked back to life 4005 | -10/Subcaves | Lost 4 parts (1p1n2w) 4007 | -10/Subcaves | Found Prototype Flight Unit 4512 | -10/Subcaves | Shifting Twisted Machinery released Unknown Ballistic Gun 4522 | -10/Subcaves | Shifting Twisted Machinery released Sub. Laser 4595 | -10/Subcaves | Shifting Twisted Machinery released Mak. Light Armor Plating 4611 | -10/Subcaves | Shifting Twisted Machinery released Mak. Laser 4621 | -10/Subcaves | Learned Materials non-interactive machine intel 4627 | -10/Subcaves | Discovered new exit (range 16) 4700 | -10/Subcaves | Visited 4L-MR0's lab 4709 | -10/Subcaves | Identified Flightbrick 4720 | -10/Subcaves | Found Power Bank 4831 | -10/Subcaves | Entered Materials 4831 | -8/Materials | Evolved 4 slots: Propulsion x2, Utility x2 4832 | -8/Materials | Identified exit to Storage 4833 | -8/Materials | Loaded intel: 26 non-interactive machine locations 4852 | -8/Materials | Garrison activated, responded to threat 5165 | -8/Materials | Discovered exit to Storage (range 15) 5258 | -8/Materials | Central database locked down 5532 | -8/Materials | Discovered new exit (range 18) 5538 | -8/Materials | Met 7R-MNS 5650 | -8/Materials | Build established: Scavenger-Mutant 6034 | -8/Materials | Discovered new exit (range 12) 6134 | -8/Materials | Build established: Mutant 6338 | -8/Materials | Discovered new exit (range 11) 6497 | -8/Materials | Learned Storage trap positions 6588 | -8/Materials | Learned location of 2 exits from Lower Caves 6621 | -8/Materials | Learned location of Lower Caves (-6) 6664 | -8/Materials | Learned location of 1 exit from Recycling 6680 | -8/Materials | Entered Storage 6681 | -8/Storage | Loaded intel: 19 trap records 6971 | -8/Storage | Met 01-MTF 7030 | -8/Storage | Garrison activated, responded to threat 7068 | -8/Storage | Identified exit to Garrison 7508 | -8/Storage | Discovered new exit (range 7) 7574 | -8/Storage | System corruption reached 10% 7574 | -8/Storage | Destroyed 01-MTF 7600 | -8/Storage | Lost 3 parts (1p1u1w) 7707 | -8/Storage | Discovered new exit (range 16) 7934 | -8/Storage | Entered Factory 7934 | -7/Factory | Evolved 2 slots: Propulsion x1, Utility x1 7935 | -7/Factory | Loaded intel: 6 fabricator locations 8168 | -7/Factory | Discovered new exit (range 15) 8490 | -7/Factory | Identified exit to Lower Caves 8604 | -7/Factory | Found Prototype Launcher 8604 | -7/Factory | Identified Rocket Array 9238 | -7/Factory | Destroyed 7 combat bots 9305 | -7/Factory | Central database locked down 9338 | -7/Factory | Cargo convoy interrupted 9378 | -7/Factory | Destroyed 9 combat bots 9490 | -7/Factory | Found Prototype Processor 9490 | -7/Factory | Identified Exp. Terrain Scan Processor 9534 | -7/Factory | First assault squad dispatched 9714 | -7/Factory | Entered Lower Caves 9715 | -7/Lower Caves | Identified exit to Lower Caves 9794 | -7/Lower Caves | Learned Factory terminal intel 10094 | -7/Lower Caves | Learned location of 1 exit from Factory 10385 | -7/Lower Caves | Spotted B-75 Beast 10570 | -7/Lower Caves | Learned Factory emergency access door positions 10614 | -7/Lower Caves | Encountered a Warlord checkpoint 10824 | -7/Lower Caves | Entered another Lower Caves area 10825 | -7/Lower Caves | Identified exit to Factory 10949 | -7/Lower Caves | Entered a destroyed Warlord outpost 11057 | -7/Lower Caves | Encountered a Warlord checkpoint 11572 | -7/Lower Caves | Attacked by a faux Warlord 11634 | -7/Lower Caves | Attracted the attention of an 0b10 checkpoint 11696 | -7/Lower Caves | Learned Factory trap positions 11699 | -7/Lower Caves | Learned Factory terminal intel 12237 | -7/Lower Caves | Discovered new exit (range 3) 12240 | -7/Lower Caves | Identified exit to Data Miner 12243 | -7/Lower Caves | Entered Data Miner 12243 | -7/Data Miner | Discovered new exit (range 6) 12283 | -7/Data Miner | Met Data Miner 12306 | -7/Data Miner | Learned location of Section 7 (-3) 12306 | -7/Data Miner | Acquired the access code to Warlord's prototype stash 12320 | -7/Data Miner | Received God Mode back door access code from Data Miner 12353 | -7/Data Miner | Data Conduit disabled 12365 | -7/Data Miner | Core integrity fell below 50% 12412 | -7/Data Miner | Attached Power Bank, gained temporary slots: Power x3 12443 | -7/Data Miner | Core integrity fell below 20% 12449 | -7/Data Miner | System corruption reached 10% 12471 | -7/Data Miner | Lost 8 parts (1p3n1u3w) 12480 | -7/Data Miner | Destroyed by Enhanced Grunt with Neutron Cannon Last Messages --------------- (+7). 12449_ Unknown Device fried. 12449_ Enhanced Grunt destroyed. 12452_ Overheating: Energy bleed (-36). 12456_ Overload: Energy bleed (-39). 12457_ Power failure, Antimatter Reactor shutdown. 12460_ Power failure, Enh. Nuclear Core shutdown. 12460_ Overheating: Matter decay (-34). 12466_ Power failure, Antimatter Reactor shutdown. 12466_ Overheating: Thermal Defense Suite damaged (-16). 12469_ Overheating: Matter decay (-56). 12471_ Power failure, Enh. Nuclear Core shutdown. 12475_ Enh. Nuclear Core destroyed. 12475_ Temporary Power slot lost. 12478_ Antimatter Reactor destroyed. Map ----- +----------------------------------------------------+ | | | | | | | | | | | | | | | | | | | | | | | | | | | | | | | | | | | | | ?????????????????????????????????????? | | ?????????????????????????????????????? | | ?????????????????????????????????????? | | ???????##????????????????????????????? | | ?????# # ####????????????####????????# | | ????##;;;*#;;########??? """##?????### | | ????#"" =%%g """"""###"" " # #??## | | ???#"" ]== @ ; " # ## < | | ???"""""!" ="] | | ???""""""" | | ????""""" | | ????""""" | | ????"""""" | | ??????"""" " """"""""""" | | ??????""""" """"############ | | ???????"""" """""###??????????? | | ???????"""""" "#####????????????? | | ?????????###"## "#????????????????? | | ???????????#"### "#????????????????? | | ??????????????## "#????????????????? | | ??????????????# "#????????????????? | | ?????????????## "#????????????????? | | ?????????????# "#????????????????? | | ?????????????### "#????????????????? | | ???????????????# "##???????????????? | | ??????????????## ""#???????????????? | | ?????????????## ""#???????????????? | | ??????????##"#"X ""#???????????????? | | ??????????""""" "####????????????? | | ??????????""""" X"""""????????????? | | ??????????##"#"X "##"#????????????? | | ???????????#?## X""""#????????????? | +----------------------------------------------------+ Best States ------------- Heat Dissipation 45 Energy Generation 33 Energy Capacity 530 Matter Stores 300 Matter Capacity 300 Sight Range 20 Robot Scan Range 15 Terrain Scan Density 1010 Armor Coverage 375 Resistance: TH 20 Power Shielding 33 Evasion (%) 40 Targeting Accuracy 8 Core Analysis 6 Recoil Reduction 5 Item Schematics ----------------- Imp. VTOL Module | -8/Materials | Scanalyzed Seismic Detector | -8/Materials | Scanalyzed Imp. Light Armor Plating | -8/Materials | Scanalyzed Cld. Gravmag System | -7/Factory | Scanalyzed Xenon Bombardment Thruster | -7/Factory | Scanalyzed Combat Drone Bay | -7/Data Miner | Free Lgt. Regenerative Plating | -7/Data Miner | Free Biomechanical Wings | -7/Data Miner | Free Gravity Neutralizer | -7/Data Miner | Free Com. Ion Cannon | -7/Data Miner | Free Gyrokinetic Inverter | -7/Data Miner | Free Adv. Shield Generator | -7/Data Miner | Free Tesla Rifle | -7/Data Miner | Free Triangulator | -7/Data Miner | Free Antigrav System | -7/Data Miner | Free Linear Gravjet | -7/Data Miner | Free Adv. Reaction Control System | -7/Data Miner | Free Imp. Remote Force Field | -7/Data Miner | Free Robot Schematics ------------------ L-41 Fighter | -7/Data Miner | Free E-15 Imp | -7/Data Miner | Free M-14 Sweeper | -7/Data Miner | Free B-48 Gladiator | -7/Data Miner | Free H-66 Slayer | -7/Data Miner | Free M-22 Extractor | -7/Data Miner | Free I-47 Archangel | -7/Data Miner | Free R-10 Processor | -7/Data Miner | Free Fabricated ------------ Nothing Repaired ---------- Nothing Studied --------- Rocket Launcher | -8/Materials | Hacked Lgt. Treads | -8/Materials | Hacked Autogun | -8/Materials | Hacked Hvy. Assault Rifle | -8/Materials | Hacked Arm. Huge Wheel | -7/Factory | Hacked Xenon Bombardment Thruster | -7/Factory | Hacked Alien Tech Used ----------------- None Achievements -------------- None Challenges ------------ None Game ------ Seed BeamClaymoresCompanion Manual? 0 Play Time 01:20:07 Cumulative 462.3 hours Start 2025.10.29 @ 20:36:20 End 2025.10.29 @ 22:15:59 Sessions 1 Manual Loads 0 Difficulty Rogue Special Mode None Game No. 244 Rogue 244 Adventurer 0 Explorer 0 Win Type - Total 21 Types 13/1/5/1/0/0/0/1/0/0 Lore% 92 Gallery% 85 Achievement% 77 Wizard Run 0 Options --------- Layout 2 ASCII 0 Keyboard 1 Movement Vi Keybinds 0 Fullscreen 1 Font 28/Terminus Map View 50x52 Zoom Use 0% Tactical HUD 1 Map Filters NONE Filters NONE Steam 1 RUN: aa230872-9021-4a2d-8802-9148159027f2